fUSD/lending_fUSD_20250514
["ID","MTS","AMOUNT","RATE_DAILY","PERIOD"]
[361044083,1747212647369,-430.3,0.0001182,2]
[361044084,1747212647420,-809.06,0.0001182,2]
[361044085,1747212647432,-954.19,0.0001182,2]
[361044086,1747212647443,-400.0,0.0001182,2]
[361044087,1747212647453,-400.0,0.0001182,2]
[361044088,1747212647463,-400.0,0.0001182,2]
[361044089,1747212647472,-509.21,0.0001182,2]
[361044090,1747212647482,-400.0,0.0001182,2]
[361044091,1747212647491,-400.0,0.0001182,2]
[361044092,1747212647501,-2789.98,0.0001182,2]
[361044093,1747212647510,-1989.58,0.0001182,2]
[361044094,1747212647520,-6723.97,0.0001182,2]
[361044095,1747212647531,-11464.28,0.0001182,2]
[361044096,1747212647540,-2391.36,0.0001182,2]
[361044097,1747212647553,-614.14,0.0001182,2]
[361044098,1747212647562,-5378.41,0.0001182,2]
[361044099,1747212647573,-1868.1,0.0001182,2]
[361044100,1747212647583,-400.0,0.0001182,2]
[361044101,1747212647592,-753.17,0.0001182,2]
[361044102,1747212647602,-2175.0,0.0001182,2]
[361044103,1747212647612,-3011.87,0.0001182,2]
[361044104,1747212647622,-13676.86,0.0001182,2]
[361044105,1747212647632,-528.71,0.0001182,2]
[361044106,1747212647642,-4037.31,0.0001182,2]
[361044107,1747212647652,-1269.6,0.0001182,2]
[361044108,1747212647662,-7881.18,0.0001182,2]
[361044109,1747212647671,-400.0,0.0001182,2]
[361044110,1747212647681,-2188.86,0.0001182,2]
[361044111,1747212647690,-400.0,0.0001182,2]
[361044112,1747212647700,-400.0,0.0001182,2]
[361044113,1747212647710,-400.0,0.0001182,2]
[361044114,1747212647720,-728.81,0.0001182,2]
[361044115,1747212647729,-4201.44,0.0001182,2]
[361044116,1747212647738,-400.0,0.0001182,2]
[361044117,1747212647747,-400.0,0.0001182,2]
[361044118,1747212647757,-400.0,0.0001182,2]
[361044119,1747212647766,-540.26,0.0001182,2]
[361044120,1747212647775,-9541.87,0.0001182,2]
[361044121,1747212647785,-2971.26,0.0001182,2]
[361044122,1747212647794,-6394.05,0.0001182,2]
[361044123,1747212647804,-8616.98,0.0001182,2]
[361044124,1747212647813,-565.48,0.0001182,2]
[361044125,1747212647822,-407.38,0.0001182,2]
[361044126,1747212647831,-747.7,0.0001182,2]
[361044127,1747212647840,-400.0,0.0001182,2]
[361044128,1747212647849,-4353.57,0.0001182,2]
[361044129,1747212647858,-3223.62,0.0001182,2]
[361044130,1747212647866,-400.0,0.0001182,2]
[361044131,1747212647875,-766.48,0.0001182,2]
[361044132,1747212647885,-461.64,0.0001182,2]
[361044133,1747212647894,-3749.72,0.0001182,2]
[361044134,1747212647903,-179740.73963321,0.00011821,2]
[361044135,1747212647912,-400.0,0.00011821,2]
[361044136,1747212647921,-400.0,0.00011821,2]
[361044137,1747212647930,-460.82,0.00011821,2]
[361044138,1747212647939,-400.0,0.00011821,2]
[361044139,1747212647948,-428.28,0.00011821,2]
[361044140,1747212647958,-400.0,0.00011821,2]
[361044141,1747212647967,-400.0,0.00011821,2]
[361044142,1747212647976,-400.0,0.00011821,2]
[361044143,1747212647985,-400.0,0.00011821,2]
[361044144,1747212647994,-400.0,0.00011821,2]
[361044145,1747212648004,-400.0,0.00011821,2]
[361044146,1747212648013,-400.0,0.00011821,2]
[361044147,1747212648022,-400.0,0.00011821,2]
[361044148,1747212648031,-400.0,0.00011821,2]
[361044149,1747212648040,-287.94870594,0.00011821,2]
[361044150,1747212648050,-400.0,0.00011821,2]
[361044151,1747212648059,-329.90614253,0.00011821,2]
[361044152,1747212648069,-400.0,0.00011821,2]
[361044153,1747212648078,-300.0,0.00011821,2]
[361044154,1747212648087,-546.33,0.00011821,2]
[361044155,1747212648097,-305.58997366,0.00011821,2]
[361044156,1747212648106,-400.0,0.00011821,2]
[361044157,1747212648116,-889.65,0.00011821,2]
[361044158,1747212648125,-433.26395788,0.00011821,2]
[361044159,1747212648135,-400.0,0.00011821,2]
[361044160,1747212648144,-300.0,0.00011821,2]
[361044161,1747212648154,-400.0,0.00011821,2]
[361044162,1747212648163,-583.66,0.00011821,2]
[361044163,1747212648173,-400.0,0.00011821,2]
[361044164,1747212648182,-400.0,0.00011821,2]
[361044165,1747212648192,-400.0,0.00011821,2]
[361044166,1747212648202,-400.0,0.00011821,2]
[361044167,1747212648211,-1600.14,0.00011821,2]
[361044168,1747212648221,-400.0,0.00011821,2]
[361044169,1747212648231,-400.0,0.00011821,2]
[361044170,1747212648241,-400.0,0.00011821,2]
[361044171,1747212648251,-1802.3,0.00011821,2]
[361044172,1747212648260,-1221.23,0.00011821,2]
[361044173,1747212648270,-1895.91,0.00011821,2]
[361044174,1747212648280,-492.84,0.00011821,2]
[361044175,1747212648290,-400.0,0.00011821,2]
[361044176,1747212648300,-1506.57,0.00011821,2]
[361044177,1747212648310,-2563.99,0.00011821,2]
[361044178,1747212648321,-840.38,0.00011821,2]
[361044179,1747212648330,-400.0,0.00011821,2]
[361044180,1747212648340,-482.41,0.00011821,2]
[361044181,1747212648349,-420.5,0.00011821,2]
[361044182,1747212648359,-400.0,0.00011821,2]
[361044183,1747212648370,-400.0,0.00011821,2]
[361044184,1747212648380,-400.0,0.00011821,2]
[361044185,1747212648389,-527.69,0.00011821,2]
[361044186,1747212648400,-18564.33,0.00011821,2]
[361044187,1747212648410,-1343.88,0.00011821,2]
[361044188,1747212648419,-2099.34,0.00011821,2]
[361044189,1747212648428,-7356.73,0.00011821,2]
[361044190,1747212648438,-400.0,0.00011821,2]
[361044191,1747212648447,-3060.21,0.00011821,2]
[361044192,1747212648457,-400.0,0.00011821,2]
[361044193,1747212648466,-400.0,0.00011821,2]
[361044194,1747212648476,-400.0,0.00011821,2]
[361044195,1747212648486,-7402.41,0.00011821,2]
[361044196,1747212648496,-400.0,0.00011821,2]
[361044197,1747212648506,-988.29,0.00011821,2]
[361044198,1747212648516,-400.0,0.00011821,2]
[361044199,1747212648527,-1425.89,0.00011821,2]
[361044200,1747212648537,-703.29,0.00011821,2]
[361044201,1747212648548,-400.0,0.00011821,2]
[361044202,1747212648559,-400.0,0.00011821,2]
[361044203,1747212648569,-400.0,0.00011821,2]
[361044204,1747212648578,-400.0,0.00011821,2]
[361044205,1747212648588,-569.77,0.00011821,2]
[361044206,1747212648597,-945.01,0.00011821,2]
[361044207,1747212648607,-895.63,0.00011821,2]
[361044208,1747212648616,-189.52,0.00011821,2]
[361044209,1747212648625,-400.0,0.00011821,2]
[361044210,1747212648636,-1174.23,0.00011821,2]
[361044211,1747212648645,-735.02,0.00011821,2]
[361044212,1747212648655,-1532.02,0.00011821,2]
[361044213,1747212648665,-20480.08,0.00011821,2]
[361044214,1747212648674,-1724.29,0.00011821,2]
[361044215,1747212648684,-400.0,0.00011821,2]
[361044216,1747212648694,-15459.26,0.00011821,2]
[361044217,1747212648703,-22138.74,0.00011821,2]
[361044218,1747212648713,-400.0,0.00011821,2]
[361044219,1747212648723,-1901.78,0.00011821,2]
[361044220,1747212648733,-24898.96,0.00011821,2]
[361044221,1747212648742,-400.0,0.00011821,2]
[361044222,1747212648752,-3889.35,0.00011821,2]
[361044223,1747212648763,-1717.1,0.00011821,2]
[361044224,1747212648773,-400.0,0.00011821,2]
[361044225,1747212648783,-520.96,0.00011821,2]
[361044226,1747212648793,-2264.97,0.00011821,2]
[361044227,1747212648803,-400.0,0.00011821,2]
[361044228,1747212648813,-664.05,0.00011821,2]
[361044229,1747212648822,-400.0,0.00011821,2]
[361044230,1747212648831,-469.99,0.00011821,2]
[361044231,1747212648841,-1956.27,0.00011821,2]
[361044232,1747212648850,-288.06087244,0.00011821,2]
[361044233,1747212648859,-212.0,0.00011896,2]
[361044234,1747212648869,-9753.59996773,0.000119,2]
[361044235,1747212648881,-420.0,0.00011927,2]
[361044236,1747212648891,-1415.0,0.00011937,2]
[361044237,1747212648900,-250.0,0.00011953,2]
[361044238,1747212648910,-500.0,0.00012,2]
[361044239,1747212648919,-1500.0,0.00012068,2]
[361044240,1747212648929,-2870.24333675,0.00012079,2]
[361044241,1747212648939,-713.39,0.00012094,2]
[361044242,1747212648949,-1769.42,0.00012094,2]
[361044243,1747212648958,-427.16,0.00012094,2]
[361044244,1747212648967,-17816.0,0.00012094,2]
[361044245,1747212648977,-430.31,0.00012094,2]
[361044246,1747212648987,-400.0,0.00012094,2]
[361044247,1747212648997,-628.05,0.00012094,2]
[361044248,1747212649006,-4836.25,0.00012094,2]
[361044249,1747212649015,-1348.75,0.00012094,2]
[361044250,1747212649026,-400.0,0.00012094,2]
[361044251,1747212649035,-234.99834769,0.00012094,2]
[361044252,1747212649045,-1521.19,0.00012094,2]
[361044253,1747212649055,-400.0,0.00012094,2]
[361044254,1747212649065,-400.0,0.00012094,2]
[361044255,1747212649075,-480.55,0.00012094,2]
[361044256,1747212649084,-668.98,0.00012094,2]
[361044257,1747212649094,-430.3,0.00012094,2]
[361044258,1747212649103,-809.06,0.00012094,2]
[361044259,1747212649113,-954.19,0.00012094,2]
[361044260,1747212649122,-400.0,0.00012094,2]
[361044261,1747212649133,-400.0,0.00012094,2]
[361044262,1747212649143,-400.0,0.00012094,2]
[361044263,1747212649153,-509.21,0.00012094,2]
[361044264,1747212649163,-400.0,0.00012094,2]
[361044265,1747212649173,-400.0,0.00012094,2]
[361044266,1747212649182,-2789.98,0.00012094,2]
[361044267,1747212649192,-1989.58,0.00012094,2]
[361044268,1747212649201,-6723.97,0.00012094,2]
[361044269,1747212649211,-11464.28,0.00012094,2]
[361044270,1747212649221,-2391.36,0.00012094,2]
[361044271,1747212649230,-614.14,0.00012094,2]
[361044272,1747212649240,-5378.41,0.00012094,2]
[361044273,1747212649251,-1868.1,0.00012094,2]
[361044274,1747212649261,-400.0,0.00012094,2]
[361044275,1747212649272,-753.17,0.00012094,2]
[361044276,1747212649283,-2175.0,0.00012094,2]
[361044277,1747212649294,-3011.87,0.00012094,2]
[361044278,1747212649304,-13676.86,0.00012094,2]
[361044279,1747212649313,-528.71,0.00012094,2]
[361044280,1747212649323,-4037.31,0.00012094,2]
[361044281,1747212649333,-1269.6,0.00012094,2]
[361044282,1747212649343,-7881.18,0.00012094,2]
[361044283,1747212649353,-400.0,0.00012094,2]
[361044284,1747212649362,-2188.86,0.00012094,2]
[361044285,1747212649372,-400.0,0.00012094,2]
[361044286,1747212649381,-400.0,0.00012094,2]
[361044287,1747212649391,-400.0,0.00012094,2]
[361044288,1747212649401,-728.81,0.00012094,2]
[361044289,1747212649411,-4201.44,0.00012094,2]
[361044290,1747212649421,-400.0,0.00012094,2]
[361044291,1747212649431,-400.0,0.00012094,2]
[361044292,1747212649440,-400.0,0.00012094,2]
[361044293,1747212649450,-540.26,0.00012094,2]
[361044294,1747212649460,-9541.87,0.00012094,2]
[361044295,1747212649470,-2971.26,0.00012094,2]
[361044296,1747212649480,-6394.05,0.00012094,2]
[361044297,1747212649490,-8616.98,0.00012094,2]
[361044298,1747212649501,-565.48,0.00012094,2]
[361044299,1747212649511,-407.38,0.00012094,2]
[361044300,1747212649520,-747.7,0.00012094,2]
[361044301,1747212649535,-400.0,0.00012094,2]
[361044302,1747212649545,-4353.57,0.00012094,2]
[361044303,1747212649555,-3223.62,0.00012094,2]
[361044304,1747212649565,-286.16,0.00012094,2]
[361044305,1747212649576,-766.48,0.00012094,2]
[361044306,1747212649585,-461.64,0.00012094,2]
[361044307,1747212649595,-3749.72,0.00012094,2]
[361044308,1747212649604,-400.0,0.00012095,2]
[361044309,1747212649614,-400.0,0.00012095,2]
[361044310,1747212649623,-460.82,0.00012095,2]
[361044311,1747212649632,-400.0,0.00012095,2]
[361044312,1747212649642,-428.28,0.00012095,2]
[361044313,1747212649651,-334.33745971,0.00012095,2]
[361044314,1747212649660,-400.0,0.00012095,2]
[361044315,1747212649671,-400.0,0.00012095,2]
[361044316,1747212649680,-400.0,0.00012095,2]
[361044317,1747212649690,-379.88,0.00012095,2]
[361044318,1747212649700,-400.0,0.00012095,2]
[361044319,1747212649709,-400.81896983,0.00012095,2]
[361044320,1747212649719,-337.44,0.00012095,2]
[361044321,1747212649728,-400.0,0.00012095,2]
[361044322,1747212649737,-400.0,0.00012095,2]
[361044323,1747212649746,-400.0,0.00012095,2]
[361044324,1747212649756,-546.33,0.00012095,2]
[361044325,1747212649765,-400.0,0.00012095,2]
[361044326,1747212649775,-889.65,0.00012095,2]
[361044327,1747212649785,-400.0,0.00012095,2]
[361044328,1747212649794,-400.0,0.00012095,2]
[361044329,1747212649803,-583.66,0.00012095,2]
[361044330,1747212649813,-400.0,0.00012095,2]
[361044331,1747212649823,-400.0,0.00012095,2]
[361044332,1747212649832,-400.0,0.00012095,2]
[361044333,1747212649841,-400.0,0.00012095,2]
[361044334,1747212649850,-1600.14,0.00012095,2]
[361044335,1747212649861,-400.0,0.00012095,2]
[361044336,1747212649871,-167.08415816,0.00012095,2]
[361044337,1747212649880,-400.0,0.00012095,2]
[361044338,1747212649890,-1802.3,0.00012095,2]
[361044339,1747212649899,-1221.23,0.00012095,2]
[361044340,1747212649908,-1895.91,0.00012095,2]
[361044341,1747212649918,-492.84,0.00012095,2]
[361044342,1747212649927,-400.0,0.00012095,2]
[361044343,1747212649936,-1506.57,0.00012095,2]
[361044344,1747212649945,-2563.99,0.00012095,2]
[361044345,1747212649955,-840.38,0.00012095,2]
[361044346,1747212649964,-400.0,0.00012095,2]
[361044347,1747212649974,-482.41,0.00012095,2]
[361044348,1747212649982,-420.5,0.00012095,2]
[361044349,1747212649992,-400.0,0.00012095,2]
[361044350,1747212650001,-400.0,0.00012095,2]
[361044351,1747212650011,-400.0,0.00012095,2]
[361044352,1747212650020,-527.69,0.00012095,2]
[361044353,1747212650030,-18564.33,0.00012095,2]
[361044354,1747212650039,-1343.88,0.00012095,2]
[361044355,1747212650048,-2099.34,0.00012095,2]
[361044356,1747212650057,-7356.73,0.00012095,2]
[361044357,1747212650067,-400.0,0.00012095,2]
[361044358,1747212650076,-3060.21,0.00012095,2]
[361044359,1747212650085,-400.0,0.00012095,2]
[361044360,1747212650094,-400.0,0.00012095,2]
[361044361,1747212650103,-400.0,0.00012095,2]
[361044362,1747212650113,-7402.41,0.00012095,2]
[361044363,1747212650123,-400.0,0.00012095,2]
[361044364,1747212650133,-988.29,0.00012095,2]
[361044365,1747212650142,-400.0,0.00012095,2]
[361044366,1747212650152,-1425.89,0.00012095,2]
[361044367,1747212650161,-703.29,0.00012095,2]
[361044368,1747212650170,-400.0,0.00012095,2]
[361044369,1747212650180,-400.0,0.00012095,2]
[361044370,1747212650190,-400.0,0.00012095,2]
[361044371,1747212650199,-400.0,0.00012095,2]
[361044372,1747212650208,-569.77,0.00012095,2]
[361044373,1747212650218,-945.01,0.00012095,2]
[361044374,1747212650227,-895.63,0.00012095,2]
[361044375,1747212650236,-400.0,0.00012095,2]
[361044376,1747212650245,-1174.23,0.00012095,2]
[361044377,1747212650255,-735.02,0.00012095,2]
[361044378,1747212650264,-1532.02,0.00012095,2]
[361044379,1747212650274,-20480.08,0.00012095,2]
[361044380,1747212650283,-1724.29,0.00012095,2]
[361044381,1747212650293,-400.0,0.00012095,2]
[361044382,1747212650303,-15459.26,0.00012095,2]
[361044383,1747212650312,-22138.74,0.00012095,2]
[361044384,1747212650321,-400.0,0.00012095,2]
[361044385,1747212650331,-1901.78,0.00012095,2]
[361044386,1747212650340,-24898.96,0.00012095,2]
[361044387,1747212650350,-400.0,0.00012095,2]
[361044388,1747212650359,-3889.35,0.00012095,2]
[361044389,1747212650368,-1717.1,0.00012095,2]
[361044390,1747212650379,-400.0,0.00012095,2]
[361044391,1747212650390,-520.96,0.00012095,2]
[361044392,1747212650399,-2264.97,0.00012095,2]
[361044393,1747212650409,-400.0,0.00012095,2]
[361044394,1747212650419,-664.05,0.00012095,2]
[361044395,1747212650429,-400.0,0.00012095,2]
[361044396,1747212650439,-469.99,0.00012095,2]
[361044397,1747212650449,-1956.27,0.00012095,2]
[361044398,1747212650459,-5337.2220648,0.00012359,2]
[361044399,1747212650469,-713.39,0.00012368,2]
[361044400,1747212650478,-500.0,0.00012368,2]
[361044401,1747212650488,-1769.42,0.00012368,2]
[361044402,1747212650498,-427.16,0.00012368,2]
[361044403,1747212650508,-17816.0,0.00012368,2]
[361044404,1747212650518,-430.31,0.00012368,2]
[361044405,1747212650531,-400.0,0.00012368,2]
[361044406,1747212650541,-628.05,0.00012368,2]
[361044407,1747212650551,-4836.25,0.00012368,2]
[361044408,1747212650562,-1348.75,0.00012368,2]
[361044409,1747212650573,-360.24241744,0.00012368,2]
[361044410,1747212650582,-1521.19,0.00012368,2]
[361044411,1747212650594,-400.0,0.00012368,2]
[361044412,1747212650603,-400.0,0.00012368,2]
[361044413,1747212650613,-480.55,0.00012368,2]
[361044414,1747212650623,-668.98,0.00012368,2]
[361044415,1747212650632,-430.3,0.00012368,2]
[361044416,1747212650642,-809.06,0.00012368,2]
[361044417,1747212650652,-954.19,0.00012368,2]
[361044418,1747212650662,-400.0,0.00012368,2]
[361044419,1747212650671,-400.0,0.00012368,2]
[361044420,1747212650681,-509.21,0.00012368,2]
[361044421,1747212650690,-400.0,0.00012368,2]
[361044422,1747212650699,-400.0,0.00012368,2]
[361044423,1747212650709,-2789.98,0.00012368,2]
[361044424,1747212650719,-1989.58,0.00012368,2]
[361044425,1747212650729,-6723.97,0.00012368,2]
[361044426,1747212650738,-11464.28,0.00012368,2]
[361044427,1747212650748,-2391.36,0.00012368,2]
[361044428,1747212650758,-614.14,0.00012368,2]
[361044429,1747212650767,-5378.41,0.00012368,2]
[361044430,1747212650777,-1868.1,0.00012368,2]
[361044431,1747212650787,-400.0,0.00012368,2]
[361044432,1747212650797,-753.17,0.00012368,2]
[361044433,1747212650807,-2175.0,0.00012368,2]
[361044434,1747212650817,-3011.87,0.00012368,2]
[361044435,1747212650827,-13676.86,0.00012368,2]
[361044436,1747212650837,-528.71,0.00012368,2]
[361044437,1747212650847,-4037.31,0.00012368,2]
[361044438,1747212650856,-1269.6,0.00012368,2]
[361044439,1747212650866,-7881.18,0.00012368,2]
[361044440,1747212650875,-400.0,0.00012368,2]
[361044441,1747212650887,-2188.86,0.00012368,2]
[361044442,1747212650897,-400.0,0.00012368,2]
[361044443,1747212650907,-400.0,0.00012368,2]
[361044444,1747212650917,-400.0,0.00012368,2]
[361044445,1747212650927,-728.81,0.00012368,2]
[361044446,1747212650939,-4201.44,0.00012368,2]
[361044447,1747212650948,-400.0,0.00012368,2]
[361044448,1747212650959,-400.0,0.00012368,2]
[361044449,1747212650969,-400.0,0.00012368,2]
[361044450,1747212650979,-540.26,0.00012368,2]
[361044451,1747212650989,-9541.87,0.00012368,2]
[361044452,1747212651000,-2971.26,0.00012368,2]
[361044453,1747212651009,-6394.05,0.00012368,2]
[361044454,1747212651019,-8616.98,0.00012368,2]
[361044455,1747212651029,-565.48,0.00012368,2]
[361044456,1747212651039,-407.38,0.00012368,2]
[361044457,1747212651049,-747.7,0.00012368,2]
[361044458,1747212651060,-400.0,0.00012368,2]
[361044459,1747212651069,-4353.57,0.00012368,2]
[361044460,1747212651078,-3223.62,0.00012368,2]
[361044461,1747212651088,-766.48,0.00012368,2]
[361044462,1747212651098,-461.64,0.00012368,2]
[361044463,1747212651108,-3749.72,0.00012368,2]
[361044464,1747212651117,-400.0,0.00012369,2]
[361044465,1747212651127,-400.0,0.00012369,2]
[361044466,1747212651137,-460.82,0.00012369,2]
[361044467,1747212651147,-400.0,0.00012369,2]
[361044468,1747212651158,-428.28,0.00012369,2]
[361044469,1747212651168,-400.0,0.00012369,2]
[361044470,1747212651178,-400.0,0.00012369,2]
[361044471,1747212651187,-400.0,0.00012369,2]
[361044472,1747212651197,-400.0,0.00012369,2]
[361044473,1747212651206,-400.0,0.00012369,2]
[361044474,1747212651216,-546.33,0.00012369,2]
[361044475,1747212651226,-182.65761175,0.00012369,2]
[361044476,1747212651235,-889.65,0.00012369,2]
[361044477,1747212651245,-400.0,0.00012369,2]
[361044478,1747212651254,-400.0,0.00012369,2]
[361044479,1747212651263,-583.66,0.00012369,2]
[361044480,1747212651273,-189.89660138,0.00012369,2]
[361044481,1747212651282,-546.65299989,0.00012369,2]
[361044482,1747212651292,-400.0,0.00012369,2]
[361044483,1747212651303,-400.0,0.00012369,2]
[361044484,1747212651313,-1600.14,0.00012369,2]
[361044485,1747212651323,-400.0,0.00012369,2]
[361044486,1747212651333,-400.0,0.00012369,2]
[361044487,1747212651342,-1802.3,0.00012369,2]
[361044488,1747212651352,-1221.23,0.00012369,2]
[361044489,1747212651363,-1895.91,0.00012369,2]
[361044490,1747212651372,-492.84,0.00012369,2]
[361044491,1747212651384,-400.0,0.00012369,2]
[361044492,1747212651394,-1506.57,0.00012369,2]
[361044493,1747212651404,-2563.99,0.00012369,2]
[361044494,1747212651413,-840.38,0.00012369,2]
[361044495,1747212651423,-400.0,0.00012369,2]
[361044496,1747212651434,-482.41,0.00012369,2]
[361044497,1747212651444,-420.5,0.00012369,2]
[361044498,1747212651454,-400.0,0.00012369,2]
[361044499,1747212651464,-400.0,0.00012369,2]
[361044500,1747212651474,-527.69,0.00012369,2]
[361044501,1747212651485,-18564.33,0.00012369,2]
[361044502,1747212651495,-1343.88,0.00012369,2]
[361044503,1747212651505,-2099.34,0.00012369,2]
[361044504,1747212651515,-7356.73,0.00012369,2]
[361044505,1747212651527,-400.0,0.00012369,2]
[361044506,1747212651539,-3060.21,0.00012369,2]
[361044507,1747212651549,-400.0,0.00012369,2]
[361044508,1747212651559,-400.0,0.00012369,2]
[361044509,1747212651570,-400.0,0.00012369,2]
[361044510,1747212651581,-7402.41,0.00012369,2]
[361044511,1747212651591,-515.96544547,0.00012369,2]
[361044512,1747212651600,-988.29,0.00012369,2]
[361044513,1747212651611,-400.0,0.00012369,2]
[361044514,1747212651622,-1425.89,0.00012369,2]
[361044515,1747212651633,-703.29,0.00012369,2]
[361044516,1747212651643,-400.0,0.00012369,2]
[361044517,1747212651652,-347.68,0.00012369,2]
[361044518,1747212651662,-400.0,0.00012369,2]
[361044519,1747212651671,-569.77,0.00012369,2]
[361044520,1747212651681,-945.01,0.00012369,2]
[361044521,1747212651690,-895.63,0.00012369,2]
[361044522,1747212651700,-400.0,0.00012369,2]
[361044523,1747212651710,-1174.23,0.00012369,2]
[361044524,1747212651719,-735.02,0.00012369,2]
[361044525,1747212651730,-1532.02,0.00012369,2]
[361044526,1747212651740,-20480.08,0.00012369,2]
[361044527,1747212651750,-1724.29,0.00012369,2]
[361044528,1747212651761,-15459.26,0.00012369,2]
[361044529,1747212651771,-22138.74,0.00012369,2]
[361044530,1747212651781,-400.0,0.00012369,2]
[361044531,1747212651791,-1901.78,0.00012369,2]
[361044532,1747212651801,-24898.96,0.00012369,2]
[361044533,1747212651811,-400.0,0.00012369,2]
[361044534,1747212651821,-3889.35,0.00012369,2]
[361044535,1747212651831,-1717.1,0.00012369,2]
[361044536,1747212651842,-400.0,0.00012369,2]
[361044537,1747212651852,-520.96,0.00012369,2]
[361044538,1747212651862,-2264.97,0.00012369,2]
[361044539,1747212651872,-400.0,0.00012369,2]
[361044540,1747212651883,-664.05,0.00012369,2]
[361044541,1747212651893,-400.0,0.00012369,2]
[361044542,1747212651903,-469.99,0.00012369,2]
[361044543,1747212651913,-1956.27,0.00012369,2]
[361044544,1747212651923,-2870.24333675,0.00012375,2]
[361044545,1747212651932,-233.06721166,0.00012543,2]
[361044546,1747212651940,-198.93645751,0.00012543,2]
[361044547,1747212651948,-151.0,0.00012569,2]
[361044548,1747212651957,-2000.0,0.00012616,2]
[361044549,1747212651964,-713.39,0.00012642,2]
[361044550,1747212651973,-1769.42,0.00012642,2]
[361044551,1747212651983,-427.16,0.00012642,2]
[361044552,1747212651993,-17816.0,0.00012642,2]
[361044553,1747212652003,-430.31,0.00012642,2]
[361044554,1747212652014,-400.0,0.00012642,2]
[361044555,1747212652024,-628.05,0.00012642,2]
[361044556,1747212652033,-4836.25,0.00012642,2]
[361044557,1747212652044,-1348.75,0.00012642,2]
[361044558,1747212652055,-1521.19,0.00012642,2]
[361044559,1747212652066,-271.42655844,0.00012642,2]
[361044560,1747212652077,-400.0,0.00012642,2]
[361044561,1747212652087,-480.55,0.00012642,2]
[361044562,1747212652098,-668.98,0.00012642,2]
[361044563,1747212652108,-430.3,0.00012642,2]
[361044564,1747212652118,-809.06,0.00012642,2]
[361044565,1747212652128,-954.19,0.00012642,2]
[361044566,1747212652141,-400.0,0.00012642,2]
[361044567,1747212652150,-400.0,0.00012642,2]
[361044568,1747212652160,-509.21,0.00012642,2]
[361044569,1747212652170,-400.0,0.00012642,2]
[361044570,1747212652180,-400.0,0.00012642,2]
[361044571,1747212652191,-2789.98,0.00012642,2]
[361044572,1747212652200,-1989.58,0.00012642,2]
[361044573,1747212652211,-6723.97,0.00012642,2]
[361044574,1747212652222,-11464.28,0.00012642,2]
[361044575,1747212652233,-2391.36,0.00012642,2]
[361044576,1747212652244,-614.14,0.00012642,2]
[361044577,1747212652255,-5378.41,0.00012642,2]
[361044578,1747212652266,-1868.1,0.00012642,2]
[361044579,1747212652276,-400.0,0.00012642,2]
[361044580,1747212652287,-753.17,0.00012642,2]
[361044581,1747212652298,-2175.0,0.00012642,2]
[361044582,1747212652310,-3011.87,0.00012642,2]